Workbook

Sheet Лист1
A1: Школа | C1: МБОУ Рябовская СШ | F1: Утвердил: | G1: должность | H1: директор ИП
A2: Типовое примерное меню приготавливаемых блюд | G2: фамилия | H2: Щеглова О.А.
A3: Возрастная категория | E3: 7-11 лет | G3: дата | H3: 1 | I3: 9 | J3: 2025
H4: день | I4: месяц | J4: год
A5: Неделя | B5: День недели | C5: Прием пищи | D5: Раздел меню | E5: Блюда | F5: Вес блюда, г | G5: Белки | H5: Жиры | I5: Углеводы | J5: Калорийность | K5: № рецептуры | L5: Цена
A6: 1 | B6: 1 | C6: Завтрак | D6: гор.блюдо | E6: Каша жидкая молочная с хлопьями овсяными | F6: 210 | G6: 9 | H6: 11 | I6: 26 | J6: 255 | K6: ТК№3 | L6: 45.32
D7: сладкое | E7: Блин с клубничным джемом | F7: 100 | G7: 4 | H7: 7 | I7: 31 | J7: 190 | K7: ТТК№1 | L7: 33.00
D8: гор.напиток | E8: Какао с молоком | F8: 200 | G8: 4 | H8: 4 | I8: 13 | J8: 106 | K8: ТК№21 | L8: 24.40
D9: хлеб | E9: Хлеб пшеничный в/с | F9: 60 | G9: 5 | H9: 1 | I9: 26 | J9: 128 | K9: ТК№25 | L9: 8.28
D10: фрукты
D11: закуска
D13: итого | F13: =SUM(F6:F12) -> 570 | G13: =SUM(G6:G12) -> 22 | H13: 22 | I13: 95 | J13: 679 | L13: =SUM(L6:L12) -> 111.00
A14: =A6 -> 1 | B14: =B6 -> 1 | C14: Обед | D14: закуска
D15: 1 блюдо
D16: 2 блюдо
D17: гарнир
D18: напиток
D19: хлеб бел.
D20: хлеб черн.
D22: итого | F22: =SUM(F14:F21) -> 0 | G22: =SUM(G14:G21) -> 0 | H22: =SUM(H14:H21) -> 0 | I22: =SUM(I14:I21) -> 0 | J22: =SUM(J14:J21) -> 0 | L22: =SUM(L20:L22) -> 0.00
A23: =A6 -> 1 | B23: =B6 -> 1 | C23: Итого за день: | F23: =F13+F22 -> 570 | G23: =G13+G22 -> 22 | H23: =H13+H22 -> 22 | I23: =I13+I22 -> 95 | J23: =J13+J22 -> 679 | L23: =SUM(L6,L7,L8,L9) -> 111.00
A24: 1 | B24: 2 | C24: Завтрак | D24: гор.блюдо | E24: Суп молочный с макаронными изделиями | F24: 200 | G24: 9 | H24: 12 | I24: 26 | J24: 245 | K24: ТК№9 | L24: 45.32
D25: сладкое | E25: Блин с клубничным джемом | F25: 100 | G25: 4 | H25: 7 | I25: 31 | J25: 190 | K25: ТТК№1 | L25: 33.00
D26: гор.напиток | E26: Кофейный напиток с молоком | F26: 200 | G26: 4 | H26: 3 | I26: 12 | J26: 112 | K26: ТК№22 | L26: 24.40
D27: хлеб | E27: Хлеб пшеничный в/с | F27: 60 | G27: 5 | H27: 1 | I27: 26 | J27: 128 | K27: ТК№25 | L27: 8.28
D28: фрукты
D29: закуска
D31: итого | F31: =SUM(F24:F30) -> 560 | G31: =SUM(G24:G30) -> 21 | H31: =SUM(H24:H30) -> 22 | I31: =SUM(I24:I30) -> 95 | J31: =SUM(J24:J30) -> 676 | L31: =SUM(L24:L30) -> 111.00
A32: =A24 -> 1 | B32: =B24 -> 2 | C32: Обед | D32: закуска
D33: 1 блюдо
D34: 2 блюдо
D35: гарнир
D36: напиток
D37: хлеб бел.
D38: хлеб черн.
D40: итого | F40: =SUM(F32:F39) -> 0 | G40: =SUM(G32:G39) -> 0 | H40: =SUM(H32:H39) -> 0 | I40: =SUM(I32:I39) -> 0 | J40: =SUM(J32:J39) -> 0 | L40: =SUM(L38:L40) -> 0.00
A41: =A24 -> 1 | B41: =B24 -> 2 | C41: Итого за день: | F41: =F31+F40 -> 560 | G41: =G31+G40 -> 21 | H41: =H31+H40 -> 22 | I41: =I31+I40 -> 95 | J41: =J31+J40 -> 676 | L41: =SUM(L24,L25,L26,L27,L28) -> 111.00
A42: 1 | B42: 3 | C42: Завтрак | D42: гор.блюдо | E42: Пельмени отварные п/ф 180/20 | F42: 200 | G42: 18 | H42: 22 | I42: 50 | J42: 470 | K42: ТТК№4 | L42: 84.60
D43: сладкое
D44: гор.напиток | E44: Чай с сахаром | F44: 210 | G44: 0 | H44: 0 | I44: 10 | J44: 46 | K44: ТК№18 | L44: 3.10
D45: хлеб | E45: Хлеб пшеничный в/с | F45: 40 | G45: 3 | H45: 0 | I45: 17 | J45: 87 | K45: ТК№25 | L45: 5.52
D46: фрукты | E46: Яблоки свежие | F46: 100 | G46: 0 | H46: 0 | I46: 18 | J46: 73 | K46: ТК№27 | L46: 17.78
D47: закуска
D49: итого | F49: =SUM(F42:F48) -> 550 | G49: =SUM(G42:G48) -> 22 | H49: 23 | I49: 95 | J49: 676 | L49: =SUM(L42:L48) -> 111.00
A50: =A42 -> 1 | B50: =B42 -> 3 | C50: Обед | D50: закуска
D51: 1 блюдо
D52: 2 блюдо
D53: гарнир
D54: напиток
D55: хлеб бел.
D56: хлеб черн.
D58: итого | F58: =SUM(F50:F57) -> 0 | G58: =SUM(G50:G57) -> 0 | H58: =SUM(H50:H57) -> 0 | I58: =SUM(I50:I57) -> 0 | J58: =SUM(J50:J57) -> 0 | L58: =SUM(L56:L58) -> 0.00
A59: =A42 -> 1 | B59: =B42 -> 3 | C59: Итого за день: | F59: =F49+F58 -> 550 | G59: =G49+G58 -> 22 | H59: =H49+H58 -> 23 | I59: =I49+I58 -> 95 | J59: =J49+J58 -> 676 | L59: 111.00
A60: 1 | B60: 4 | C60: Завтрак | D60: гор.блюдо | E60: Каша жидкая молочная рисовая | F60: 210 | G60: 7 | H60: 10 | I60: 27 | J60: 255 | K60: ТК№7 | L60: 45.32
D61: сладкое | E61: Блин с клубничным джемом | F61: 100 | G61: 4 | H61: 7 | I61: 31 | J61: 190 | K61: ТТК№1 | L61: 33.00
D62: гор.напиток | E62: Какао с молоком | F62: 200 | G62: 4 | H62: 4 | I62: 13 | J62: 106 | K62: ТК№21 | L62: 24.40
D63: хлеб | E63: Хлеб пшеничный в/с | F63: 60 | G63: 5 | H63: 1 | I63: 26 | J63: 128 | K63: ТК№25 | L63: 8.28
D64: фрукты
D65: закуска
D67: итого | F67: =SUM(F60:F66) -> 570 | G67: =SUM(G60:G66) -> 20 | H67: 21 | I67: 96 | J67: 679 | L67: =SUM(L60,L61,L62,L63) -> 111.00
A68: =A60 -> 1 | B68: =B60 -> 4 | C68: Обед | D68: закуска
D69: 1 блюдо
D70: 2 блюдо
D71: гарнир
D72: напиток
D73: хлеб бел.
D74: хлеб черн.
D76: итого | F76: =SUM(F68:F75) -> 0 | G76: =SUM(G68:G75) -> 0 | H76: =SUM(H68:H75) -> 0 | I76: =SUM(I68:I75) -> 0 | J76: =SUM(J68:J75) -> 0 | L76: =SUM(L74:L76) -> 0.00
A77: =A60 -> 1 | B77: =B60 -> 4 | C77: Итого за день: | F77: =F67+F76 -> 570 | G77: =G67+G76 -> 20 | H77: =H67+H76 -> 21 | I77: =I67+I76 -> 96 | J77: =J67+J76 -> 679 | L77: =SUM(L60,L61,L62,L63) -> 111.00
A78: 1 | B78: 5 | C78: Завтрак | D78: гор.блюдо | E78: Плов из птицы ( куриное филе) | F78: 250 | G78: 16 | H78: 19 | I78: 54 | J78: 467 | K78: ТК№14 | L78: 67.71
D79: сладкое
D80: гор.напиток | E80: Чай каркаде с сахаром | F80: 210 | G80: 0 | H80: 0 | I80: 7 | J80: 29 | K80: ТК№20 | L80: 5.62
D81: хлеб | E81: Хлеб ржаной | F81: 40 | G81: 3 | H81: 1 | I81: 16 | J81: 83 | K81: ТК№26 | L81: 5.52
D82: фрукты
D83: закуска | E83: Икра кабачковая | F83: 100 | G83: 1 | H83: 3 | I83: 19 | J83: 91 | K83: ТК№28 | L83: 32.15
D85: итого | F85: =SUM(F78:F84) -> 600 | G85: =SUM(G78:G84) -> 21 | H85: 23 | I85: 95 | J85: 670 | L85: =SUM(L78:L84) -> 111.00
A86: =A78 -> 1 | B86: =B78 -> 5 | C86: Обед | D86: закуска
D87: 1 блюдо
D88: 2 блюдо
D89: гарнир
D90: напиток
D91: хлеб бел.
D92: хлеб черн.
D94: итого | F94: =SUM(F86:F93) -> 0 | G94: =SUM(G86:G93) -> 0 | H94: =SUM(H86:H93) -> 0 | I94: =SUM(I86:I93) -> 0 | J94: =SUM(J86:J93) -> 0 | L94: =SUM(L92:L94) -> 0.00
A95: =A78 -> 1 | B95: =B78 -> 5 | C95: Итого за день: | F95: =F85+F94 -> 600 | G95: =G85+G94 -> 21 | H95: =H85+H94 -> 23 | I95: =I85+I94 -> 95 | J95: =J85+J94 -> 670 | L95: =SUM(L78,L79,L80,L81,L82,L83) -> 111.00
A96: 2 | B96: 1 | C96: Завтрак | D96: гор.блюдо | E96: Каша жидкая молочная манная | F96: 215 | G96: 9 | H96: 12 | I96: 37 | J96: 295 | K96: ТК№4 | L96: 58.03
D97: хлеб | E97: Бутерброд с сыром и маслом 40/10/10 | F97: 60 | G97: 7 | H97: 10 | I97: 18 | J97: 188 | K97: ТК№2 | L97: 37.65
D98: гор.напиток | E98: Чай с лимоном | F98: 217 | G98: 0 | H98: 0 | I98: 15 | J98: 62 | K98: ТК№17 | L98: 7.04
D99: хлеб | E99: Хлеб пшеничный в/с | F99: 60 | G99: 5 | H99: 1 | I99: 26 | J99: 128 | K99: ТК№26 | L99: 8.28
D100: фрукты
D101: закуска
D103: итого | F103: =SUM(F96:F102) -> 552 | G103: =SUM(G96:G102) -> 21 | H103: 23 | I103: 96 | J103: 674 | L103: =SUM(L96:L102) -> 111.00
A104: =A96 -> 2 | B104: =B96 -> 1 | C104: Обед | D104: закуска
D105: 1 блюдо
D106: 2 блюдо
D107: гарнир
D108: напиток
D109: хлеб бел.
D110: хлеб черн.
D112: итого | F112: =SUM(F104:F111) -> 0 | G112: =SUM(G104:G111) -> 0 | H112: =SUM(H104:H111) -> 0 | I112: =SUM(I104:I111) -> 0 | J112: =SUM(J104:J111) -> 0 | L112: =SUM(L110:L112) -> 0.00
A113: =A96 -> 2 | B113: =B96 -> 1 | C113: Итого за день: | F113: =F103+F112 -> 552 | G113: =G103+G112 -> 21 | H113: =H103+H112 -> 23 | I113: =I103+I112 -> 96 | J113: =J103+J112 -> 674 | L113: =SUM(L96,L97,L98,L99,L100) -> 111.00
A114: 2 | B114: 2 | C114: Завтрак | D114: гор.блюдо | E114: Печень по- строгоновски | F114: 100 | G114: 11 | H114: 8 | I114: 13 | J114: 221 | K114: ТК№15 | L114: 77.50
D115: гор.блюдо | E115: Каша рассыпчатая гречневая | F115: 180 | G115: 4 | H115: 12 | I115: 48 | J115: 295 | K115: ТК№11 | L115: 16.00
D116: гор.напиток | E116: Чай с молоком | F116: 200 | G116: 2 | H116: 1 | I116: 15 | J116: 61 | K116: ТК№19 | L116: 9.18
D117: хлеб | E117: Хлеб ржаной | F117: 60 | G117: 4 | H117: 1 | I117: 21 | J117: 99 | K117: ТК№26 | L117: 8.32
D118: фрукты
D119: закуска
D121: итого | F121: =SUM(F114:F120) -> 540 | G121: =SUM(G114:G120) -> 21 | H121: 23 | I121: 95 | J121: 676 | L121: =SUM(L114:L120) -> 111.00
A122: =A114 -> 2 | B122: =B114 -> 2 | C122: Обед | D122: закуска
D123: 1 блюдо
D124: 2 блюдо
D125: гарнир
D126: напиток
D127: хлеб бел.
D128: хлеб черн.
D130: итого | F130: =SUM(F122:F129) -> 0 | G130: =SUM(G122:G129) -> 0 | H130: =SUM(H122:H129) -> 0 | I130: =SUM(I122:I129) -> 0 | J130: =SUM(J122:J129) -> 0 | L130: =SUM(L128:L130) -> 0.00
A131: =A114 -> 2 | B131: =B114 -> 2 | C131: Итого за день: | F131: =F121+F130 -> 540 | G131: =G121+G130 -> 21 | H131: =H121+H130 -> 23 | I131: =I121+I130 -> 95 | J131: =J121+J130 -> 676 | L131: =SUM(L114,L115,L116,L117) -> 111.00
A132: 2 | B132: 3 | C132: Завтрак | D132: гор.блюдо | E132: Каша жидкая молочная пшенная | F132: 215 | G132: 12 | H132: 18 | I132: 40 | J132: 361 | K132: ТК№5 | L132: 49.32
D133: гор.блюдо
D134: гор.напиток | E134: Кофейный напиток с молоком | F134: 200 | G134: 4 | H134: 3 | I134: 12 | J134: 112 | K134: ТК№22 | L134: 24.40
D135: хлеб | E135: Хлеб пшеничный в/с | F135: 60 | G135: 5 | H135: 1 | I135: 26 | J135: 128 | K135: ТК№25 | L135: 8.28
D136: фрукты | E136: Яблоки свежие | F136: 100 | G136: 0 | H136: 0 | I136: 18 | J136: 73 | K136: ТК№27 | L136: 29.00
D137: закуска
D139: итого | F139: =SUM(F132:F138) -> 575 | G139: =SUM(G132:G138) -> 21 | H139: =SUM(H132:H138) -> 22 | I139: =SUM(I132:I138) -> 96 | J139: =SUM(J132:J138) -> 674 | L139: =SUM(L132:L138) -> 111.00
A140: =A132 -> 2 | B140: =B132 -> 3 | C140: Обед | D140: закуска
D141: 1 блюдо
D142: 2 блюдо
D143: гарнир
D144: напиток
D145: хлеб бел.
D146: хлеб черн.
D148: итого | F148: =SUM(F140:F147) -> 0 | G148: =SUM(G140:G147) -> 0 | H148: =SUM(H140:H147) -> 0 | I148: =SUM(I140:I147) -> 0 | J148: =SUM(J140:J147) -> 0 | L148: =SUM(L146:L148) -> 0.00
A149: =A132 -> 2 | B149: =B132 -> 3 | C149: Итого за день: | F149: =F139+F148 -> 575 | G149: =G139+G148 -> 21 | H149: =H139+H148 -> 22 | I149: =I139+I148 -> 96 | J149: =J139+J148 -> 674 | L149: =SUM(L132,L133,L134,L135,L136) -> 111.00
A150: 2 | B150: 4 | C150: Завтрак | D150: гор.блюдо | E150: Котлеты домашние "Люкс" п/ф 100 Соус основной красный 100 | F150: 200 | G150: 9 | H150: 15 | I150: 24 | J150: 293 | K150: ТТК№2 ТК№24 | L150: 84.18
D151: гор.блюдо | E151: Макароны отварные | F151: 180 | G151: 7 | H151: 7 | I151: 42 | J151: 240 | K151: ТК№10 | L151: 15.40
D152: гор.напиток | E152: Чай с сахаром | F152: 210 | G152: 0 | H152: 0 | I152: 10 | J152: 46 | K152: ТК№18 | L152: 3.10
D153: хлеб | E153: Хлеб ржаной | F153: 60 | G153: 4 | H153: 1 | I153: 21 | J153: 99 | K153: ТК№26 | L153: 8.32
D154: фрукты
D155: закуска
D157: итого | F157: =SUM(F150:F156) -> 650 | G157: =SUM(G150:G156) -> 20 | H157: =SUM(H150:H156) -> 22 | I157: =SUM(I150:I156) -> 96 | J157: =SUM(J150:J156) -> 678 | L157: =SUM(L150:L156) -> 111.00
A158: =A150 -> 2 | B158: =B150 -> 4 | C158: Обед | D158: закуска
D159: 1 блюдо
D160: 2 блюдо
D161: гарнир
D162: напиток
D163: хлеб бел.
D164: хлеб черн.
D166: итого | F166: =SUM(F158:F165) -> 0 | G166: =SUM(G158:G165) -> 0 | H166: =SUM(H158:H165) -> 0 | I166: =SUM(I158:I165) -> 0 | J166: =SUM(J158:J165) -> 0 | L166: =SUM(L164:L166) -> 0.00
A167: =A150 -> 2 | B167: =B150 -> 4 | C167: Итого за день: | F167: =F157+F166 -> 650 | G167: =G157+G166 -> 20 | H167: =H157+H166 -> 22 | I167: =I157+I166 -> 96 | J167: =J157+J166 -> 678 | L167: =SUM(L150,L151,L152,L153) -> 111.00
A168: 2 | B168: 5 | C168: Завтрак | D168: гор.блюдо | E168: Каша жидкая молочная гречневая | F168: 210 | G168: 8 | H168: 12 | I168: 26 | J168: 256 | K168: ТК№8 | L168: 45.32
D169: сладкое | E169: Блин с клубничным джемом | F169: 100 | G169: 4 | H169: 7 | I169: 31 | J169: 190 | K169: ТТК№1 | L169: 33.00
D170: гор.напиток | E170: Какао с молоком | F170: 200 | G170: 4 | H170: 4 | I170: 13 | J170: 106 | K170: ТК№21 | L170: 24.40
D171: хлеб | E171: Хлеб пшеничный в/с | F171: 60 | G171: 5 | H171: 1 | I171: 26 | J171: 128 | K171: ТК№25 | L171: 8.28
D172: фрукты
D173: закуска
D175: итого | F175: =SUM(F168:F174) -> 570 | G175: =SUM(G168:G174) -> 21 | H175: 23 | I175: 96 | J175: 680 | L175: =SUM(L168:L174) -> 111.00
A176: =A168 -> 2 | B176: =B168 -> 5 | C176: Обед | D176: закуска
D177: 1 блюдо
D178: 2 блюдо
D179: гарнир
D180: напиток
D181: хлеб бел.
D182: хлеб черн.
D184: итого | F184: =SUM(F176:F183) -> 0 | G184: =SUM(G176:G183) -> 0 | H184: =SUM(H176:H183) -> 0 | I184: =SUM(I176:I183) -> 0 | J184: =SUM(J176:J183) -> 0 | L184: =SUM(L182:L184) -> 0.00
A185: =A168 -> 2 | B185: =B168 -> 5 | C185: Итого за день: | F185: =F175+F184 -> 570 | G185: =G175+G184 -> 21 | H185: 23 | I185: 96 | J185: 680 | L185: =SUM(L168,L169,L170,L171) -> 111.00
A186: 3 | B186: 1 | C186: Завтрак | D186: гор.блюдо | E186: Вареники с картофилем п/ф со сметаной 180/20 | F186: 200 | G186: 12 | H186: 14 | I186: 24 | J186: 301 | K186: ТТК№5 | L186: 60.54
D187: сладкое | E187: Блин с клубничным джемом | F187: 100 | G187: 4 | H187: 7 | I187: 31 | J187: 190 | K187: ТТК№1 | L187: 33.00
D188: гор.напиток | E188: Чай с молоком | F188: 210 | G188: 2 | H188: 1 | I188: 15 | J188: 61 | K188: ТК№19 | L188: 9.18
D189: хлеб | E189: Хлеб пшеничный в/с | F189: 60 | G189: 5 | H189: 1 | I189: 26 | J189: 128 | K189: ТК№25 | L189: 8.28
D190: фрукты
D191: закуска
D193: итого | F193: =SUM(F186:F192) -> 570 | G193: =SUM(G186:G192) -> 22 | H193: 23 | I193: 95 | J193: 680 | L193: =SUM(L186:L192) -> 111.00
A194: =A186 -> 3 | B194: =B186 -> 1 | C194: Обед | D194: закуска
D195: 1 блюдо
D196: 2 блюдо
D197: гарнир
D198: напиток
D199: хлеб бел.
D200: хлеб черн.
D202: итого | F202: =SUM(F194:F201) -> 0 | G202: =SUM(G194:G201) -> 0 | H202: =SUM(H194:H201) -> 0 | I202: =SUM(I194:I201) -> 0 | J202: =SUM(J194:J201) -> 0 | L202: =SUM(L200:L202) -> 0.00
A203: =A186 -> 3 | B203: =B186 -> 1 | C203: Итого за день: | F203: =F193+F202 -> 570 | G203: =G193+G202 -> 22 | H203: 23 | I203: 95 | J203: 680 | L203: =SUM(L186,L187,L188,L189,L191) -> 111.00
A204: 3 | B204: 2 | C204: Завтрак | D204: гор.блюдо | E204: Филе птицы (куриное) с соусом сметанным | F204: 100 | G204: 11 | H204: 17 | I204: 11 | J204: 268 | K204: ТК№16 | L204: 75.11
D205: гор.блюдо | E205: Каша рассыпчатая перловая | F205: 180 | G205: 5 | H205: 5 | I205: 49 | J205: 251 | K205: ТК№13 | L205: 20.53
D206: гор.напиток | E206: Чай с лимоном | F206: 217 | G206: 0 | H206: 0 | I206: 15 | J206: 62 | K206: ТК№14 | L206: 7.04
D207: хлеб | E207: Хлеб ржаной | F207: 60 | G207: 4 | H207: 1 | I207: 21 | J207: 99 | K207: ТК№26 | L207: 8.32
D209: закуска
D211: итого | F211: =SUM(F204:F210) -> 557 | G211: =SUM(G204:G210) -> 21 | H211: 23 | I211: 95 | J211: 680 | L211: =SUM(L204:L210) -> 111.00
A212: =A204 -> 3 | B212: =B204 -> 2 | C212: Обед | D212: закуска
D213: 1 блюдо
D214: 2 блюдо
D215: гарнир
D216: напиток
D217: хлеб бел.
D218: хлеб черн.
D220: итого | F220: =SUM(F212:F219) -> 0 | G220: =SUM(G212:G219) -> 0 | H220: =SUM(H212:H219) -> 0 | I220: =SUM(I212:I219) -> 0 | J220: =SUM(J212:J219) -> 0 | L220: =SUM(L218:L220) -> 0.00
A221: =A204 -> 3 | B221: =B204 -> 2 | C221: Итого за день: | F221: =F211+F220 -> 557 | G221: =G211+G220 -> 21 | H221: 23 | I221: 95 | J221: 680 | L221: =SUM(L204,L205,L206,L207,L208) -> 111.00
A222: 3 | B222: 3 | C222: Завтрак | D222: гор.блюдо | E222: Каша вязкая молочная из пшена и риса" Дружба" | F222: 210 | G222: 7 | H222: 12 | I222: 27 | J222: 249 | K222: ТК№6 | L222: 45.32
D223: сладкое | E223: Блин с клубничным джемом | F223: 100 | G223: 4 | H223: 7 | I223: 31 | J223: 190 | K223: ТТК№1 | L223: 33.00
D224: гор.напиток | E224: Кофейный напиток с молоком | F224: 200 | G224: 4 | H224: 3 | I224: 12 | J224: 112 | K224: ТК№22 | L224: 24.40
D225: хлеб | E225: Хлеб пшеничный в/с | F225: 60 | G225: 5 | H225: 1 | I225: 26 | J225: 128 | K225: ТК№25 | L225: 8.28
... 45 more rows
